Cogmind - Beta 14 @@@ ROGUE MODE // 2024.08.09 @ 15:31:39 Player: Gitida Result: Destroyed by S-10 Pest with Light Assault Rifle Performance ------------- Evolutions (0) 0 Regions Visited (2) 400 Robots Destroyed (15) 75 Value Destroyed (354) 354 Prototype IDs (3) 60 Alien Tech Used (0) 0 Bonus (66) 66 TOTAL SCORE: 955 Bonus ------- Follower Combat Kills 66 Cogmind --------- Core Integrity 0/250 Matter 300/300 Energy 261/265 System Corruption 2% Temperature Cool (0) Movement Treading (240) Ox1 Location -10/Mines Parts ------- > --- POWER (1) -------- Improved Ion Engine > --- PROPULSION (2) --- Light Treads > --- UTILITY (2) ------ Improved Heat Sink Medium Storage Unit > --- WEAPON (2) ------- Hammer Mining Claw > --- INVENTORY (10) --- Light Nuclear Core Light Treads Flight Unit Improved Heat Sink Light Armor Plating Medium Laser Assault Rifle Heavy Assault Rifle Grenade Launcher Grenade Launcher Peak State ------------ > --- POWER ------------ Improved Ion Engine > --- PROPULSION ------- Light Treads Light Treads > --- UTILITY ---------- Improved Heat Sink Medium Storage Unit > --- WEAPON ----------- Hammer Mining Claw > --- INVENTORY -------- Light Ion Engine Light Nuclear Core Light Treads Light Treads Light Armor Plating Medium Laser Assault Rifle Heavy Assault Rifle Grenade Launcher Grenade Launcher [Rating: 11] Favorites ----------- Power Light Ion Engine Engine Light Ion Engine Propulsion Light Treads Treads Light Treads Leg Aluminum Leg Utility Improved Heat Sink Device Improved Heat Sink Storage Medium Storage Unit Weapon Mining Claw Energy Gun Medium Laser Ballistic Gun Assault Rifle Launcher Grenade Launcher Impact Weapon Hammer Slashing Weapon Mining Claw Build | -11 -10 -10 ------- Run | Yrd Mat Min Slots Evolved . | . . . Power . | . . . Propulsion . | . . . Utility . | . . . Weapon . | . . . Parts Attached 22 | 5 10 7 Power 3 | 1 1 1 Engine 3 | 1 1 1 Core . | . . . Reactor . | . . . Propulsion 8 | 2 2 4 Treads 6 | 2 . 4 Leg 2 | . 2 . Wheel . | . . . Hover . | . . . Flight . | . . . Utility 3 | 1 2 . Device 1 | . 1 . Storage 2 | 1 1 . Processor . | . . . Hackware . | . . . Protection . | . . . Artifact . | . . . Weapon 8 | 1 5 2 Energy Gun 2 | 1 1 . Energy Cannon . | . . . Ballistic Gun 1 | . 1 . Ballistic Cannon . | . . . Launcher 1 | . 1 . Special Weapon . | . . . Impact Weapon 1 | . . 1 Slashing Weapon 3 | . 2 1 Piercing Weapon . | . . . Special Melee Weapon . | . . . Unidentified Prototypes . | . . . Parts Lost 3 | . . 3 Power . | . . . Propulsion 3 | . . 3 Utility . | . . . Weapon . | . . . Highest Loss Streak 1 | . . 1 To Critical Strikes . | . . . Average Slot Usage (%) 96 | . 90 99 Engine 14 | . 14 14 Treads 18 | . 16 20 Leg 8 | . 11 6 Device 11 | . 5 14 Storage 14 | . 14 14 Energy Gun 2 | . 6 . Ballistic Gun 2 | . 6 . Impact Weapon 6 | . . 10 Slashing Weapon 16 | . 12 17 Peak Build Rating 11 | 5 10 11 Average Rating 9 | 3 7 10 On Entrance 5 | . 5 10 Naked Turns . | . . . Heaviest Build 22 | 10 18 22 Greatest Support 40 | 40 40 40 Greatest Overweight (x) 3 | 3 1 1 Average Overweight (x) . | . . . Largest Inventory Capacity 10 | 8 10 10 Average Capacity 9 | 7 8 10 Most Carried 10 | 5 10 10 Average Carried 9 | 3 7 9 Final Capacity 10 | 8 10 10 Final Carried 10 | 5 10 10 Class Distribution -------------------- 67% | Scavenger-Mutant 32% | Mutant Dominant Class ---------------- Mutant | -10/Materials Scavenger-Mutant | -10/Mines Resources | -11 -10 -10 ----------- Run | Yrd Mat Min Matter Collected 558 | 203 243 112 Remotely . | . . . Salvage Created 430 | . 265 165 Parts 22 | . 14 8 Haulers Intercepted 1 | . 1 . Recyclers Shooed . | . . . Parts Field Recycled . | . . . Retrieved Matter . | . . . Parts Self-Destructed . | . . . Prevented . | . . . Kills | -11 -10 -10 ------- Run | Yrd Mat Min Combat Hostiles Destroyed 11 | . 7 4 Melee 5 | . 1 4 Guns 3 | . 3 . AOE 3 | . 3 . Classes Destroyed 6 | . 6 . Worker 1 | . 1 . Builder 1 | . 1 . Hauler 1 | . 1 . Watcher 1 | . 1 . Swarmer 4 | . 3 1 Grunt 7 | . 4 3 Best Kill Streak 6 | . 6 1 Combat Bots Only 3 | . 3 1 Max Kills in Single Turn 3 | . 3 1 Gunslinging . | . . . Exploded 1 | . 1 . Melee 1 | . 1 1 Uniques/NPCs Destroyed . | . . . Combat | -11 -10 -10 -------- Run | Yrd Mat Min Hostile Shots Fired 116 | . 33 83 Missed 32 | . 13 19 Damage Taken 991 | . 252 739 Core 255 | . 48 207 Absorbed by Shields . | . . . Core Remaining (%) 100 | 100 . . Volleys Fired 26 | . 26 . Largest 2 | . 2 . Hottest 70 | . 70 . Shots Fired 39 | . 39 . Gun 35 | . 35 . Cannon . | . . . Launcher 4 | . 4 . Special . | . . . Kinetic 22 | . 22 . Thermal 13 | . 13 . Explosive 4 | . 4 . Electromagnetic . | . . . Robot Hit Streak 6 | . 6 . Robot Miss Streak 3 | . 3 . Penetration Max . | . . . Secondary Targets . | . . . Shots Hit Robots 58 | . 39 19 Core Hits 24 | . 18 6 Critical Kills . | . . . Critical Parts Destroyed . | . . . Critical Strikes 2 | . 2 . Burn 2 | . 2 . Melee Attacks 55 | . 15 40 Impact 3 | . . 3 Slashing 52 | . 15 37 Piercing . | . . . Sneak Attacks 2 | . 2 . Combat Hostiles . | . . . Follow-up Attacks 7 | . 2 5 Damage Inflicted 1495 | . 1101 394 Guns 308 | . 308 . Cannons . | . . . Explosions 489 | . 489 . Melee 698 | . 304 394 Ramming . | . . . Kinetic 184 | . 184 . Thermal 124 | . 124 . Explosive 489 | . 489 . Electromagnetic . | . . . Impact 68 | . . 68 Slashing 630 | . 304 326 Piercing . | . . . Highest Corruption 2 | . 2 2 Average Corruption 2 | . 2 2 Corruption Purged . | . . . Corruption Blocked . | . . . Effects 23 | . 5 18 Message Errors 9 | . 4 5 Matter Fused 5 | . . 5 Heat Flow Errors 1 | . 1 . Energy Discharges 4 | . . 4 Data Loss (minor) 1 | . . 1 Data Loss (major) 2 | . . 2 Alerts 1 | . . 1 Overload Shots . | . . . Overflow Damage 47 | . 45 2 Projectiles . | . . . Explosions 36 | . 36 . Melee 11 | . 9 2 Knockbacks 1 | . . 1 Impact 1 | . . 1 Kinetic . | . . . Secondary . | . . . Self-Inflicted Damage . | . . . Shots . | . . . Rammed . | . . . Targets Rammed . | . . . Kicked . | . . . Crushed . | . . . Highest Temperature 201 | . 201 . Average Temperature 76 | . 76 . Received Heat Transfer 462 | . 195 267 Siege Activations . | . . . Robots Corrupted . | . . . Combat Hostiles . | . . . Parts Fried . | . . . Impact Corruptions . | . . . Robots Melted . | . . . Combat Hostiles . | . . . Parts Melted 1 | . 1 . Heat Transferred 518 | . 518 . Parts Sabotaged . | . . . Parts Stolen . | . . . Parts Stripped . | . . . Power Chain Reactions . | . . . Alert | -11 -10 -10 ------- Run | Yrd Mat Min Peak Influence 227 | . 227 114 Initial 22 | . . 22 Average 33 | . 48 28 Maximum Alert Level 1 | . 1 . Low Security (%) 97 | 100 92 100 Level 1 2 | . 7 . Level 2 . | . . . Level 3 . | . . . Level 4 . | . . . Level 5 . | . . . High Security . | . . . Max Security . | . . . Squads Dispatched 1 | . 1 . Investigation 1 | . 1 . Extermination . | . . . Reinforcement . | . . . Assault . | . . . Garrison . | . . . Intercept . | . . . Searches Triggered . | . . . Construction Impeded . | . . . Haulers Reinforced . | . . . Active Scanning Responses . | . . . Cargo Convoy Interrupts . | . . . Stealth | -11 -10 -10 --------- Run | Yrd Mat Min Distress Signals 1 | . 1 . Communications Jammed . | . . . Distress Signals . | . . . Times Spotted 20 | . 10 10 Peak Tracking Total 4 | . 4 3 Tactical Retreats 2 | . . 2 Traps | -11 -10 -10 ------- Run | Yrd Mat Min Traps Triggered 1 | . 1 . Indirectly . | . . . Trap Hack Attempts . | . . . Triggered . | . . . Disarmed . | . . . Reprogrammed . | . . . Reused . | . . . Traps Extracted . | . . . Installed . | . . . Triggered . | . . . Machines | -11 -10 -10 ---------- Run | Yrd Mat Min Machines Disabled . | . . . Max in Single Turn . | . . . Machines Repaired . | . . . Machines Dismantled . | . . . Machines Sabotaged . | . . . Overloaded Fab Kills . | . . . Hacking | -11 -10 -10 --------- Run | Yrd Mat Min Machines Accessed 5 | . 5 . Terminals 5 | . 5 . Fabricators . | . . . Repair Stations . | . . . Recycling Units . | . . . Scanalyzers . | . . . Garrison Access . | . . . Total Hacks 13 | . 13 . Successful 8 | . 8 . Failed 5 | . 5 . Catastrophic 3 | . 3 . Database Lockouts . | . . . Manual 3 | . 3 . Terminals 13 | . 13 . Fabricators . | . . . Repair Stations . | . . . Recycling Units . | . . . Scanalyzers . | . . . Garrison Access . | . . . Terminal Hacks 8 | . 8 . Robot Analysis 1 | . 1 . Prototype ID Bank 2 | . 2 . Branch Access Points 1 | . 1 . Alert Level 1 | . 1 . Security Status 1 | . 1 . Transport Status 1 | . 1 . Hauler Manifests 1 | . 1 . Fabricator Hacks . | . . . Repair Station Hacks . | . . . Recycling Unit Hacks . | . . . Scanalyzer . | . . . Garrison Access Hacks . | . . . Unauthorized Hacks . | . . . Terminals . | . . . Fabricators . | . . . Repair Stations . | . . . Recycling Units . | . . . Scanalyzers . | . . . Garrison Access . | . . . Data Cores Recovered . | . . . Used . | . . . Hacking Detections 5 | . 5 . Full Trace Events 1 | . 1 . Feedback Events . | . . . Feedback Blocked . | . . . Robot Schematics Acquired . | . . . Robots Built . | . . . Authchips . | . . . Time . | . . . Total Robot Build Rating . | . . . Part Schematics Acquired . | . . . Parts Built . | . . . Authchips . | . . . Time . | . . . Total Part Build Rating . | . . . Parts Repaired . | . . . Time . | . . . Parts Recycled . | . . . Recycled Matter . | . . . Retrieved Matter . | . . . Retrieved Components . | . . . Parts Scanalyzed . | . . . Part Schematics Acquired . | . . . Parts Damaged . | . . . Bothacking | -11 -10 -10 ------------ Run | Yrd Mat Min Used RIF Installer . | . . . Robots Hacked . | . . . Non-combat . | . . . Combat . | . . . Robot Hacks Applied . | . . . Relay Couplers Released . | . . . Fabnet Peak Effective % . | . . . Robots Rewired . | . . . Allies Hacked . | . . . Hacks Repelled . | . . . Allies | -11 -10 -10 -------- Run | Yrd Mat Min Total Allies 1 | . . 1 Largest Group 1 | . . 1 Highest-Rated Group 31 | . . 31 Highest-Rated Ally 31 | . . 31 Total Orders . | . . . Ally Attacks 6 | . . 6 Total Damage 125 | . . 125 Kills 2 | . . 2 Allies Corrupted . | . . . Allies Melted . | . . . Intel | -11 -10 -10 ------- Run | Yrd Mat Min Robot Analysis Total 1 | . 1 . Derelict Logs Recovered 2 | . . 2 Drone Launches . | . . . Drone Recoveries . | . . . Exploration | -11 -10 -10 ------------- Run | Yrd Mat Min Turns Passed 2081 | 82 657 1342 Spaces Moved 1229 | 50 370 809 Core 19 | 19 . . Treads 760 | 31 176 553 Legs 450 | . 194 256 Wheels . | . . . Hover . | . . . Flight . | . . . Fastest Speed 50 | 50 120 120 Average Speed 145 | 136 139 148 Slowest Speed 240 | 200 190 240 Overloaded Moves . | . . . Propulsion Burnouts . | . . . Robots Hopped . | . . . Cave-ins Triggered . | . . . Exploration Rate (%) 51 | 4 52 98 Regions Visited 2 Branch Regions 1 Pre-discovered Areas 2 | . . 2 Known Exits Taken 1 | . 1 . Unknown Exits Taken 1 | 1 . . Scrap Searched 1 | . . 1 Spaces Dug . | . . . Terrain Destroyed 24 | . 24 . Melee . | . . . Projectile . | . . . AOE 24 | . 24 . Terrain Rammed . | . . . Walls Destroyed . | . . . Machines Disabled . | . . . Actions | -11 -10 -10 --------- Run | Yrd Mat Min Total 1392 | 64 445 883 Wait 30 | . 10 20 Move 1227 | 49 369 809 Hop . | . . . Pick Up 25 | 10 10 5 Fast Attach 4 | . 3 1 Attach 8 | 5 1 2 Detach . | . . . Swap 10 | . 6 4 Drop 14 | . 7 7 Fire 26 | . 26 . Melee 48 | . 13 35 Ram . | . . . Kick . | . . . Crush . | . . . Escape Stasis . | . . . Rewire . | . . . Trap . | . . . Miscellaneous . | . . . Route ------- -11/Scrapyard -10/Materials (discovered 4 exits: [*Mat x2] / *Min x2) -10/Mines (discovered 2 exits: [*Mat x2]) History --------- Turn | Location | Event 22 | -11/Scrapyard | Discovered new exit (range 14) 83 | -11/Scrapyard | Entered Materials 226 | -10/Materials | Discovered new exit (range 5) 307 | -10/Materials | Build established: Mutant 483 | -10/Materials | Discovered new exit (range 11) 602 | -10/Materials | Discovered new exit (range 11) 715 | -10/Materials | Identified exit to Mines 740 | -10/Materials | Entered Mines 751 | -10/Mines | Met a Derelict bent on vengeance 765 | -10/Mines | Learned location of Mines (-9) 854 | -10/Mines | Discovered new exit (range 9) 910 | -10/Mines | Received a Mining Laser from a helpful Derelict 962 | -10/Mines | Build established: Scavenger-Mutant 1284 | -10/Mines | Core integrity fell below 50% 1346 | -10/Mines | Discovered new exit (range 8) 1848 | -10/Mines | Core integrity fell below 20% 2082 | -10/Mines | Destroyed by S-10 Pest with Light Assault Rifle Last Messages --------------- 01410_ K-01 Serf collects debris. 01468_ System corrupted: Substantial component data lost. 01503_ C6PJB #DXLC HTBZGG8GM,NFHKL>XVHJB%:P 01561_ 6NZNL NG29T%ERI=EH8UW